[Event "Early-Titled-Tuesday-Blitz-January-30-2024"]
[Site "Chess.com"]
[Date "2024.01.30"]
[Round "7"]
[White "Grandelicious"]
[Black "NovozhilovSemen"]
[Result "0-1"]
[WhiteElo "2898"]
[BlackElo "2675"]
[TimeControl "180+1"]
[EndTime "9:17:50 PST"]
[Termination "NovozhilovSemen won by resignation"]

1. Nf3 {[%clk 0:03:00.9]} 1... Nf6 {[%clk 0:02:58.5]} 2. c4 {[%clk 0:03:01.1]}
2... c5 {[%clk 0:02:58.1]} 3. e3 {[%clk 0:03:00.2]} 3... e6 {[%clk 0:02:54.9]}
4. b3 {[%clk 0:02:57.6]} 4... b6 {[%clk 0:02:54.7]} 5. Bb2 {[%clk 0:02:58]} 5...
Bb7 {[%clk 0:02:55.1]} 6. Be2 {[%clk 0:02:58.2]} 6... d5 {[%clk 0:02:55.4]} 7.
cxd5 {[%clk 0:02:56.4]} 7... exd5 {[%clk 0:02:55.3]} 8. O-O {[%clk 0:02:55.7]}
8... Bd6 {[%clk 0:02:55.3]} 9. d4 {[%clk 0:02:53.6]} 9... O-O {[%clk 0:02:53.7]}
10. Nc3 {[%clk 0:02:54.2]} 10... Nbd7 {[%clk 0:02:52.7]} 11. Bd3 {[%clk
0:02:47.5]} 11... Ne4 {[%clk 0:02:43.6]} 12. Ne2 {[%clk 0:02:36.5]} 12... Qe7
{[%clk 0:02:33.3]} 13. Rc1 {[%clk 0:02:17.9]} 13... f5 {[%clk 0:02:29.1]} 14.
Bb5 {[%clk 0:02:13.4]} 14... Ndf6 {[%clk 0:02:20]} 15. Ne5 {[%clk 0:02:11.4]}
15... Ng4 {[%clk 0:02:17]} 16. Nxg4 {[%clk 0:02:01]} 16... fxg4 {[%clk
0:02:17.9]} 17. Ng3 {[%clk 0:01:55]} 17... Nxf2 {[%clk 0:01:07.8]} 18. Rxf2
{[%clk 0:01:50.2]} 18... Rxf2 {[%clk 0:01:08.7]} 19. Kxf2 {[%clk 0:01:43.8]}
19... Rf8+ {[%clk 0:01:09.6]} 20. Ke2 {[%clk 0:01:44.4]} 20... c4 {[%clk
0:00:59.3]} 21. bxc4 {[%clk 0:01:37.7]} 21... a6 {[%clk 0:00:58.9]} 22. Ba4
{[%clk 0:01:35.6]} 22... dxc4 {[%clk 0:00:58.2]} 23. Bc2 {[%clk 0:01:23.7]}
23... Bxg2 {[%clk 0:00:57.4]} 24. Qd2 {[%clk 0:01:16.7]} 24... Qh4 {[%clk
0:00:50.5]} 25. Qc3 {[%clk 0:00:55.5]} 25... Qxh2 {[%clk 0:00:44.1]} 26. Kd2
{[%clk 0:00:30.8]} 26... Bf3+ {[%clk 0:00:40.9]} 0-1

[Event "Early-Titled-Tuesday-Blitz-January-30-2024"]
[Site "Chess.com"]
[Date "2024.01.30"]
[Round "7"]
[White "RamonManon0g"]
[Black "crazy_but_lazy"]
[Result "0-1"]
[WhiteElo "2398"]
[BlackElo "2594"]
[TimeControl "180+1"]
[EndTime "9:17:55 PST"]
[Termination "crazy_but_lazy won by checkmate"]

1. e4 {[%clk 0:02:56.7]} 1... c5 {[%clk 0:02:57.7]} 2. Nf3 {[%clk 0:02:56.6]}
2... d6 {[%clk 0:02:58.2]} 3. Bb5+ {[%clk 0:02:56.2]} 3... Bd7 {[%clk
0:02:57.5]} 4. Bxd7+ {[%clk 0:02:56]} 4... Qxd7 {[%clk 0:02:58]} 5. c4 {[%clk
0:02:56.6]} 5... Nf6 {[%clk 0:02:55.8]} 6. Nc3 {[%clk 0:02:57.5]} 6... g6 {[%clk
0:02:55.5]} 7. d4 {[%clk 0:02:57.8]} 7... cxd4 {[%clk 0:02:55.5]} 8. Nxd4 {[%clk
0:02:58.1]} 8... Bg7 {[%clk 0:02:56]} 9. f3 {[%clk 0:02:56.5]} 9... O-O {[%clk
0:02:56.3]} 10. O-O {[%clk 0:02:53.8]} 10... Rc8 {[%clk 0:02:56.5]} 11. Qd3
{[%clk 0:02:50.3]} 11... e6 {[%clk 0:02:55.3]} 12. b3 {[%clk 0:02:50.1]} 12...
d5 {[%clk 0:02:55.1]} 13. e5 {[%clk 0:02:40.2]} 13... dxc4 {[%clk 0:02:48.4]}
14. bxc4 {[%clk 0:02:38.8]} 14... Nc6 {[%clk 0:02:39.2]} 15. Rd1 {[%clk
0:02:28.2]} 15... Nxe5 {[%clk 0:02:35.6]} 16. Qe2 {[%clk 0:02:27]} 16... Nxc4
{[%clk 0:02:04.7]} 17. Nf5 {[%clk 0:02:25.5]} 17... exf5 {[%clk 0:01:55.1]} 18.
Rxd7 {[%clk 0:02:24.7]} 18... Nxd7 {[%clk 0:01:56]} 19. Qe1 {[%clk 0:01:56.1]}
19... Re8 {[%clk 0:01:38.4]} 20. Qf2 {[%clk 0:01:25.4]} 20... Bxc3 {[%clk
0:01:35.6]} 21. Bb2 {[%clk 0:01:20.1]} 21... Bxb2 {[%clk 0:01:32.3]} 22. Rd1
{[%clk 0:01:17.9]} 22... Ndb6 {[%clk 0:01:24.7]} 23. h4 {[%clk 0:01:17.5]} 23...
h5 {[%clk 0:01:20.9]} 24. Kh2 {[%clk 0:01:16.4]} 24... Rad8 {[%clk 0:01:20]} 25.
Rxd8 {[%clk 0:01:08.9]} 25... Rxd8 {[%clk 0:01:20.9]} 26. Qc5 {[%clk 0:01:02.7]}
26... Be5+ {[%clk 0:01:18]} 27. g3 {[%clk 0:01:02.9]} 27... Rd7 {[%clk
0:01:09.2]} 28. a4 {[%clk 0:01:02.2]} 28... a5 {[%clk 0:01:08.8]} 29. Kh3 {[%clk
0:01:00.3]} 29... Kg7 {[%clk 0:01:05.7]} 30. f4 {[%clk 0:01:00.2]} 30... Bf6
{[%clk 0:01:05.5]} 31. Qb5 {[%clk 0:01:00.5]} 31... Rd2 {[%clk 0:01:02.7]} 32.
Qe8 {[%clk 0:00:52.5]} 32... Nd6 {[%clk 0:00:54]} 33. Qb8 {[%clk 0:00:40]} 33...
Nbc4 {[%clk 0:00:53.4]} 34. Qc7 {[%clk 0:00:38.5]} 34... Ne3 {[%clk 0:00:49.2]}
35. g4 {[%clk 0:00:35.4]} 35... hxg4+ {[%clk 0:00:45.5]} 36. Kg3 {[%clk
0:00:35.9]} 36... Nf1# {[%clk 0:00:45.8]} 0-1

[Event "Early-Titled-Tuesday-Blitz-January-30-2024"]
[Site "Chess.com"]
[Date "2024.01.30"]
[Round "7"]
[White "simonachess"]
[Black "PawnEatingZombie"]
[Result "1-0"]
[WhiteElo "2357"]
[BlackElo "2154"]
[TimeControl "180+1"]
[EndTime "9:17:56 PST"]
[Termination "simonachess won on time"]

1. d4 {[%clk 0:02:55.4]} 1... Nf6 {[%clk 0:02:58.8]} 2. c4 {[%clk 0:02:47.6]}
2... g6 {[%clk 0:02:59]} 3. Nc3 {[%clk 0:02:47.7]} 3... Bg7 {[%clk 0:02:59.5]}
4. e4 {[%clk 0:02:47.9]} 4... d6 {[%clk 0:03:00.1]} 5. Be2 {[%clk 0:02:48.4]}
5... O-O {[%clk 0:03:00.5]} 6. Bg5 {[%clk 0:02:49]} 6... Na6 {[%clk 0:02:50.5]}
7. Qd2 {[%clk 0:02:48.5]} 7... Qe8 {[%clk 0:02:40.1]} 8. Bd1 {[%clk 0:02:35.4]}
8... c6 {[%clk 0:02:38.4]} 9. Nge2 {[%clk 0:02:31.1]} 9... e5 {[%clk 0:02:34.6]}
10. d5 {[%clk 0:02:31.3]} 10... cxd5 {[%clk 0:02:17.9]} 11. cxd5 {[%clk
0:02:32.2]} 11... Nc5 {[%clk 0:02:14.4]} 12. Bc2 {[%clk 0:02:32.1]} 12... a5
{[%clk 0:02:13.8]} 13. O-O {[%clk 0:02:20.7]} 13... Nh5 {[%clk 0:02:13.7]} 14.
Bh6 {[%clk 0:02:03.6]} 14... f5 {[%clk 0:02:08.7]} 15. Bxg7 {[%clk 0:02:03.8]}
15... Nxg7 {[%clk 0:02:04.8]} 16. exf5 {[%clk 0:02:04]} 16... gxf5 {[%clk
0:02:04]} 17. f4 {[%clk 0:01:56.9]} 17... e4 {[%clk 0:01:58.2]} 18. Nd1 {[%clk
0:01:57]} 18... Bd7 {[%clk 0:01:56.4]} 19. Ne3 {[%clk 0:01:57]} 19... b5 {[%clk
0:01:41.1]} 20. Nd4 {[%clk 0:01:56.9]} 20... Qf7 {[%clk 0:01:32]} 21. b4 {[%clk
0:01:49.4]} 21... axb4 {[%clk 0:01:26.5]} 22. Qxb4 {[%clk 0:01:50.3]} 22... Nh5
{[%clk 0:01:00.1]} 23. Nb3 {[%clk 0:01:48.9]} 23... Na4 {[%clk 0:00:46.7]} 24.
Qxd6 {[%clk 0:01:42.4]} 24... Nc3 {[%clk 0:00:40.8]} 25. Nd4 {[%clk 0:01:37]}
25... Qg7 {[%clk 0:00:26.2]} 26. Qe5 {[%clk 0:01:29.9]} 26... Rxa2 {[%clk
0:00:20.7]} 27. Rxa2 {[%clk 0:01:27.6]} 27... Nxa2 {[%clk 0:00:20.3]} 28. Bb3
{[%clk 0:01:28]} 28... Nc3 {[%clk 0:00:12.1]} 29. Ne6 {[%clk 0:01:23]} 29...
Bxe6 {[%clk 0:00:10.7]} 30. dxe6 {[%clk 0:01:23.3]} 30... Re8 {[%clk 0:00:06.8]}
31. e7+ {[%clk 0:01:14]} 31... Kh8 {[%clk 0:00:06.3]} 32. Nxf5 {[%clk
0:01:14.4]} 32... Qxe5 {[%clk 0:00:05.4]} 33. fxe5 {[%clk 0:01:14.5]} 1-0

[Event "Early-Titled-Tuesday-Blitz-January-30-2024"]
[Site "Chess.com"]
[Date "2024.01.30"]
[Round "7"]
[White "chessdjw"]
[Black "amintabatabaei"]
[Result "0-1"]
[WhiteElo "2735"]
[BlackElo "2940"]
[TimeControl "180+1"]
[EndTime "9:17:58 PST"]
[Termination "amintabatabaei won by resignation"]

1. d4 {[%clk 0:03:00.9]} 1... Nf6 {[%clk 0:02:58.2]} 2. Nf3 {[%clk 0:02:59.9]}
2... d5 {[%clk 0:02:58.2]} 3. c4 {[%clk 0:03:00]} 3... e6 {[%clk 0:02:58.4]} 4.
g3 {[%clk 0:03:00.5]} 4... dxc4 {[%clk 0:02:57.5]} 5. Bg2 {[%clk 0:03:00.8]}
5... Nc6 {[%clk 0:02:58.2]} 6. Qa4 {[%clk 0:03:00.3]} 6... Bb4+ {[%clk
0:02:58.7]} 7. Bd2 {[%clk 0:03:00.9]} 7... Nd5 {[%clk 0:02:59.2]} 8. Bxb4 {[%clk
0:02:55.9]} 8... Nxb4 {[%clk 0:02:58.6]} 9. O-O {[%clk 0:02:53.2]} 9... Rb8
{[%clk 0:02:37.3]} 10. Na3 {[%clk 0:02:43.1]} 10... O-O {[%clk 0:02:35.1]} 11.
Qb5 {[%clk 0:02:41.7]} 11... b6 {[%clk 0:02:29.6]} 12. Qxc4 {[%clk 0:02:42]}
12... Ba6 {[%clk 0:02:29.8]} 13. Nb5 {[%clk 0:02:42.2]} 13... Qd5 {[%clk
0:02:27.3]} 14. Qxd5 {[%clk 0:02:38.8]} 14... Nxd5 {[%clk 0:02:28.2]} 15. a4
{[%clk 0:02:37.3]} 15... Bb7 {[%clk 0:02:25.7]} 16. Rfc1 {[%clk 0:02:11.2]}
16... a6 {[%clk 0:02:25.5]} 17. Nc3 {[%clk 0:01:42.9]} 17... Ndb4 {[%clk
0:02:23.5]} 18. e3 {[%clk 0:01:34.3]} 18... Na5 {[%clk 0:02:20.1]} 19. Rd1
{[%clk 0:01:24]} 19... Rfd8 {[%clk 0:02:17.8]} 20. Ne5 {[%clk 0:01:14.4]} 20...
Bxg2 {[%clk 0:02:14.9]} 21. Kxg2 {[%clk 0:01:15.3]} 21... f6 {[%clk 0:02:08.1]}
22. Nd3 {[%clk 0:01:08.8]} 22... Nxd3 {[%clk 0:02:08.6]} 23. Rxd3 {[%clk
0:01:09.7]} 23... c5 {[%clk 0:02:09.5]} 24. Rad1 {[%clk 0:01:05.5]} 24... c4
{[%clk 0:02:08.8]} 25. R3d2 {[%clk 0:01:05.7]} 25... b5 {[%clk 0:02:09.5]} 26.
axb5 {[%clk 0:01:04.7]} 26... axb5 {[%clk 0:02:10.4]} 27. d5 {[%clk 0:01:02.1]}
27... b4 {[%clk 0:02:06.3]} 28. Ne4 {[%clk 0:00:59]} 28... Nb3 {[%clk
0:02:05.6]} 29. dxe6 {[%clk 0:00:38.7]} 29... Nxd2 {[%clk 0:02:03.8]} 30. e7
{[%clk 0:00:38.9]} 30... Rd7 {[%clk 0:01:54.1]} 31. Nc5 {[%clk 0:00:21.4]} 31...
Rd6 {[%clk 0:01:44.1]} 32. Nb7 {[%clk 0:00:19.8]} 32... Rd5 {[%clk 0:01:26.9]}
33. Nd8 {[%clk 0:00:11]} 33... Rbxd8 {[%clk 0:01:24.4]} 34. exd8=Q+ {[%clk
0:00:11.9]} 34... Rxd8 {[%clk 0:01:25.1]} 35. h4 {[%clk 0:00:10.6]} 35... c3
{[%clk 0:01:24.6]} 36. bxc3 {[%clk 0:00:10.6]} 36... b3 {[%clk 0:01:25.3]} 0-1

[Event "Early-Titled-Tuesday-Blitz-January-30-2024"]
[Site "Chess.com"]
[Date "2024.01.30"]
[Round "7"]
[White "Massakru"]
[Black "olawsson"]
[Result "1-0"]
[WhiteElo "2405"]
[BlackElo "2179"]
[TimeControl "180+1"]
[EndTime "9:18:00 PST"]
[Termination "Massakru won on time"]

1. e4 {[%clk 0:02:59.6]} 1... c5 {[%clk 0:02:59.6]} 2. Nf3 {[%clk 0:02:59.6]}
2... a6 {[%clk 0:02:59.4]} 3. c3 {[%clk 0:02:59.9]} 3... e6 {[%clk 0:02:58.6]}
4. d4 {[%clk 0:03:00.4]} 4... d5 {[%clk 0:02:59.2]} 5. exd5 {[%clk 0:02:57.4]}
5... exd5 {[%clk 0:02:59]} 6. Bd3 {[%clk 0:02:58.1]} 6... Nf6 {[%clk 0:02:50.8]}
7. h3 {[%clk 0:02:56.3]} 7... c4 {[%clk 0:02:49]} 8. Bc2 {[%clk 0:02:56.2]} 8...
Bd6 {[%clk 0:02:43.6]} 9. O-O {[%clk 0:02:55.4]} 9... O-O {[%clk 0:02:43.6]} 10.
b3 {[%clk 0:02:56]} 10... b5 {[%clk 0:02:43.7]} 11. a4 {[%clk 0:02:56.4]} 11...
Bb7 {[%clk 0:02:43.7]} 12. Re1 {[%clk 0:02:53.3]} 12... Nbd7 {[%clk 0:02:40.8]}
13. Ne5 {[%clk 0:02:51.7]} 13... Qc7 {[%clk 0:02:30.4]} 14. Nxd7 {[%clk
0:02:46.6]} 14... Qxd7 {[%clk 0:02:25.8]} 15. b4 {[%clk 0:02:45.5]} 15... Ne4
{[%clk 0:02:15.5]} 16. Qf3 {[%clk 0:02:42.5]} 16... f5 {[%clk 0:02:14.7]} 17.
Bf4 {[%clk 0:02:38.1]} 17... Qc7 {[%clk 0:02:05.1]} 18. Bxd6 {[%clk 0:02:37.9]}
18... Qxd6 {[%clk 0:02:05.4]} 19. axb5 {[%clk 0:02:31]} 19... axb5 {[%clk
0:02:03.1]} 20. Rxa8 {[%clk 0:02:31.1]} 20... Bxa8 {[%clk 0:02:02.7]} 21. Na3
{[%clk 0:02:30.7]} 21... Bc6 {[%clk 0:01:57.9]} 22. Qe3 {[%clk 0:02:07.6]} 22...
Ra8 {[%clk 0:01:39]} 23. Nb1 {[%clk 0:02:04.8]} 23... Ra2 {[%clk 0:01:35.8]} 24.
Qe2 {[%clk 0:01:54.1]} 24... h6 {[%clk 0:01:01.2]} 25. f3 {[%clk 0:01:54]} 25...
Qg3 {[%clk 0:00:57.5]} 26. Rf1 {[%clk 0:01:17.4]} 26... Rxc2 {[%clk 0:00:13.7]}
27. Qxc2 {[%clk 0:01:12.9]} 27... Ng5 {[%clk 0:00:13.6]} 28. Qxf5 {[%clk
0:01:07.3]} 28... Nf7 {[%clk 0:00:03]} 29. Qc8+ {[%clk 0:01:04]} 1-0

[Event "Early-Titled-Tuesday-Blitz-January-30-2024"]
[Site "Chess.com"]
[Date "2024.01.30"]
[Round "7"]
[White "KanalSzachowy"]
[Black "JuniorJumper"]
[Result "0-1"]
[WhiteElo "2339"]
[BlackElo "2511"]
[TimeControl "180+1"]
[EndTime "9:18:06 PST"]
[Termination "JuniorJumper won by resignation"]

1. e4 {[%clk 0:03:00.9]} 1... e5 {[%clk 0:02:59.6]} 2. Nf3 {[%clk 0:02:59.7]}
2... Nc6 {[%clk 0:03:00.2]} 3. Bc4 {[%clk 0:02:59.7]} 3... Nf6 {[%clk 0:03:00]}
4. d4 {[%clk 0:02:59.9]} 4... exd4 {[%clk 0:02:58.8]} 5. e5 {[%clk 0:03:00.3]}
5... d5 {[%clk 0:02:58.8]} 6. Bb5 {[%clk 0:03:00.2]} 6... Ne4 {[%clk 0:02:58.9]}
7. Nxd4 {[%clk 0:02:59.6]} 7... Bd7 {[%clk 0:02:59]} 8. Bxc6 {[%clk 0:02:58.9]}
8... bxc6 {[%clk 0:02:59.9]} 9. O-O {[%clk 0:02:59.5]} 9... Bc5 {[%clk
0:02:58.9]} 10. f3 {[%clk 0:02:59.8]} 10... Ng5 {[%clk 0:02:58.7]} 11. f4 {[%clk
0:03:00.3]} 11... Ne4 {[%clk 0:02:58.7]} 12. Be3 {[%clk 0:02:57.3]} 12... Bb6
{[%clk 0:02:58.6]} 13. Nd2 {[%clk 0:02:55.7]} 13... c5 {[%clk 0:02:57.6]} 14.
N4b3 {[%clk 0:02:39.9]} 14... Nxd2 {[%clk 0:02:51.7]} 15. Qxd2 {[%clk
0:02:36.8]} 15... d4 {[%clk 0:02:51.6]} 16. Bf2 {[%clk 0:02:36.9]} 16... Bc6
{[%clk 0:02:51.6]} 17. f5 {[%clk 0:02:29]} 17... Qd5 {[%clk 0:02:43.8]} 18. Bh4
{[%clk 0:02:22]} 18... c4 {[%clk 0:02:39.7]} 19. Nc1 {[%clk 0:02:09.4]} 19... c3
{[%clk 0:02:25.5]} 20. Qg5 {[%clk 0:01:52.5]} 20... f6 {[%clk 0:02:19.8]} 21.
exf6 {[%clk 0:01:38.5]} 21... gxf6 {[%clk 0:01:37.5]} 22. Qh5+ {[%clk
0:01:37.2]} 22... Kd7 {[%clk 0:01:34.4]} 23. Qf3 {[%clk 0:01:12]} 23... Qxf3
{[%clk 0:01:26.5]} 24. gxf3 {[%clk 0:01:12.9]} 24... cxb2 {[%clk 0:01:02.8]} 25.
Rb1 {[%clk 0:01:11.6]} 25... bxc1=Q {[%clk 0:01:02.7]} 26. Rbxc1 {[%clk
0:01:12.5]} 26... Rhg8+ {[%clk 0:01:02]} 27. Kh1 {[%clk 0:01:09]} 27... Rae8
{[%clk 0:00:37.1]} 28. c3 {[%clk 0:01:07.3]} 28... d3 {[%clk 0:00:32.7]} 29.
Rcd1 {[%clk 0:01:05.8]} 29... Re3 {[%clk 0:00:32.8]} 0-1

[Event "Early-Titled-Tuesday-Blitz-January-30-2024"]
[Site "Chess.com"]
[Date "2024.01.30"]
[Round "7"]
[White "kai_nov"]
[Black "stratacticos"]
[Result "1/2-1/2"]
[WhiteElo "2263"]
[BlackElo "2049"]
[TimeControl "180+1"]
[EndTime "9:18:07 PST"]
[Termination "Game drawn by repetition"]

1. d4 {[%clk 0:02:51.8]} 1... Nf6 {[%clk 0:02:58.9]} 2. Nc3 {[%clk 0:02:51.4]}
2... d5 {[%clk 0:02:57.2]} 3. Bg5 {[%clk 0:02:51.5]} 3... e6 {[%clk 0:02:55.2]}
4. e4 {[%clk 0:02:49.6]} 4... dxe4 {[%clk 0:02:54.9]} 5. Nxe4 {[%clk 0:02:38.7]}
5... Be7 {[%clk 0:02:54.1]} 6. Bxf6 {[%clk 0:02:37.2]} 6... Bxf6 {[%clk
0:02:53.6]} 7. Nf3 {[%clk 0:02:30.8]} 7... Nc6 {[%clk 0:02:47.1]} 8. c3 {[%clk
0:02:25.5]} 8... O-O {[%clk 0:02:44.4]} 9. Bd3 {[%clk 0:02:24.1]} 9... g6 {[%clk
0:02:33.3]} 10. Qe2 {[%clk 0:02:22.5]} 10... e5 {[%clk 0:02:21.3]} 11. Nxf6+
{[%clk 0:02:12.5]} 11... Qxf6 {[%clk 0:02:20.4]} 12. dxe5 {[%clk 0:02:04.5]}
12... Qf4 {[%clk 0:02:07.7]} 13. g3 {[%clk 0:01:52.8]} 13... Qh6 {[%clk
0:02:04.5]} 14. Qd2 {[%clk 0:01:48.3]} 14... Qxd2+ {[%clk 0:02:01.7]} 15. Kxd2
{[%clk 0:01:46.9]} 15... Bg4 {[%clk 0:02:01.3]} 16. Be4 {[%clk 0:01:45.5]} 16...
Rad8+ {[%clk 0:01:57.1]} 17. Kc2 {[%clk 0:01:38.6]} 17... Rfe8 {[%clk
0:01:37.1]} 18. Bxc6 {[%clk 0:01:36.4]} 18... bxc6 {[%clk 0:01:35.2]} 19. Nd4
{[%clk 0:01:35.4]} 19... c5 {[%clk 0:01:29.5]} 20. Nc6 {[%clk 0:01:27.1]} 20...
Rd7 {[%clk 0:01:26.4]} 21. Rhe1 {[%clk 0:01:20]} 21... Bf3 {[%clk 0:01:20.7]}
22. Na5 {[%clk 0:01:17.8]} 22... Rde7 {[%clk 0:01:04.2]} 23. Nc4 {[%clk
0:01:14.3]} 23... Bd5 {[%clk 0:01:02.5]} 24. Kd3 {[%clk 0:01:06.5]} 24... Bxc4+
{[%clk 0:01:01.3]} 25. Kxc4 {[%clk 0:01:05.4]} 25... Rxe5 {[%clk 0:01:02.2]} 26.
Rxe5 {[%clk 0:00:57.8]} 26... Rxe5 {[%clk 0:01:01.7]} 27. Kd3 {[%clk 0:00:57.5]}
27... c4+ {[%clk 0:00:57.5]} 28. Kd2 {[%clk 0:00:51.7]} 28... f5 {[%clk
0:00:53.3]} 29. Re1 {[%clk 0:00:51.1]} 29... Rd5+ {[%clk 0:00:53]} 30. Kc2
{[%clk 0:00:50.8]} 30... Kf7 {[%clk 0:00:52.6]} 31. Rd1 {[%clk 0:00:48.6]} 31...
Ke6 {[%clk 0:00:49.7]} 32. Re1+ {[%clk 0:00:45.1]} 32... Kf7 {[%clk 0:00:46.5]}
33. Rd1 {[%clk 0:00:44.4]} 33... Ke6 {[%clk 0:00:46]} 34. Re1+ {[%clk
0:00:34.9]} 34... Kf7 {[%clk 0:00:45.4]} 1/2-1/2

[Event "Early-Titled-Tuesday-Blitz-January-30-2024"]
[Site "Chess.com"]
[Date "2024.01.30"]
[Round "7"]
[White "rasmussvane"]
[Black "bancsoo"]
[Result "1-0"]
[WhiteElo "2972"]
[BlackElo "2804"]
[TimeControl "180+1"]
[EndTime "9:18:09 PST"]
[Termination "rasmussvane won by resignation"]

1. Nf3 {[%clk 0:02:59.2]} 1... d5 {[%clk 0:03:00.1]} 2. g3 {[%clk 0:02:58.5]}
2... c6 {[%clk 0:02:59.8]} 3. Bg2 {[%clk 0:02:57.5]} 3... Bg4 {[%clk 0:03:00.5]}
4. O-O {[%clk 0:02:58]} 4... Nf6 {[%clk 0:03:00.3]} 5. h3 {[%clk 0:02:57.8]}
5... Bh5 {[%clk 0:03:00.2]} 6. d4 {[%clk 0:02:56.3]} 6... e6 {[%clk 0:03:00.5]}
7. c4 {[%clk 0:02:54.4]} 7... Be7 {[%clk 0:03:01.1]} 8. Nc3 {[%clk 0:02:51.8]}
8... O-O {[%clk 0:03:01.1]} 9. Ne5 {[%clk 0:02:48.4]} 9... Nbd7 {[%clk
0:02:57.3]} 10. Qb3 {[%clk 0:02:41]} 10... Nxe5 {[%clk 0:02:35.5]} 11. dxe5
{[%clk 0:02:41.9]} 11... Nd7 {[%clk 0:02:36.2]} 12. cxd5 {[%clk 0:02:30.8]}
12... cxd5 {[%clk 0:02:36.2]} 13. g4 {[%clk 0:02:24]} 13... Bg6 {[%clk
0:02:36.2]} 14. Bf4 {[%clk 0:02:11]} 14... Qb6 {[%clk 0:02:27.9]} 15. Qxb6
{[%clk 0:01:40.6]} 15... Nxb6 {[%clk 0:02:28.1]} 16. Nb5 {[%clk 0:01:37.4]}
16... Rfc8 {[%clk 0:02:22.5]} 17. Rfc1 {[%clk 0:01:33.1]} 17... Nc4 {[%clk
0:01:47.5]} 18. Nd6 {[%clk 0:01:03.7]} 18... Nxd6 {[%clk 0:01:41]} 19. exd6
{[%clk 0:01:04.6]} 19... Bf6 {[%clk 0:01:41.8]} 20. d7 {[%clk 0:01:01.1]} 20...
Rd8 {[%clk 0:01:24.6]} 21. Rc7 {[%clk 0:01:00.3]} 21... Bxb2 {[%clk 0:01:23]}
22. Rd1 {[%clk 0:01:00.4]} 22... b6 {[%clk 0:01:20.3]} 23. Bd6 {[%clk
0:00:48.2]} 23... Bf6 {[%clk 0:00:55.5]} 24. f4 {[%clk 0:00:48.3]} 24... h6
{[%clk 0:00:51.4]} 25. f5 {[%clk 0:00:48.7]} 25... Bh7 {[%clk 0:00:46.1]} 26. e4
{[%clk 0:00:47.9]} 26... g6 {[%clk 0:00:33.7]} 27. e5 {[%clk 0:00:45.6]} 27...
Bh4 {[%clk 0:00:29.2]} 28. f6 {[%clk 0:00:44]} 28... Bg3 {[%clk 0:00:22.3]} 29.
Rdc1 {[%clk 0:00:41.3]} 29... g5 {[%clk 0:00:21.3]} 30. Rc8 {[%clk 0:00:38.2]}
1-0

[Event "Early-Titled-Tuesday-Blitz-January-30-2024"]
[Site "Chess.com"]
[Date "2024.01.30"]
[Round "7"]
[White "Martial2008"]
[Black "vladislavkovalev"]
[Result "0-1"]
[WhiteElo "2680"]
[BlackElo "2864"]
[TimeControl "180+1"]
[EndTime "9:18:19 PST"]
[Termination "vladislavkovalev won by checkmate"]

1. d4 {[%clk 0:02:57.2]} 1... Nf6 {[%clk 0:03:00.4]} 2. Nf3 {[%clk 0:02:57]}
2... e6 {[%clk 0:03:00.9]} 3. Bg5 {[%clk 0:02:57.5]} 3... d5 {[%clk 0:03:00]} 4.
Nbd2 {[%clk 0:02:57.8]} 4... Be7 {[%clk 0:02:58.2]} 5. e3 {[%clk 0:02:55.8]}
5... b6 {[%clk 0:02:57.6]} 6. Bd3 {[%clk 0:02:55.8]} 6... Bb7 {[%clk 0:02:58.3]}
7. Qe2 {[%clk 0:02:54.2]} 7... Nbd7 {[%clk 0:02:58.4]} 8. h4 {[%clk 0:02:52.1]}
8... h6 {[%clk 0:02:55.9]} 9. Bf4 {[%clk 0:02:52.2]} 9... Ne4 {[%clk 0:02:54.9]}
10. Ne5 {[%clk 0:02:49.4]} 10... Nxe5 {[%clk 0:02:51.1]} 11. Bxe5 {[%clk
0:02:48.8]} 11... f6 {[%clk 0:02:48.3]} 12. Qh5+ {[%clk 0:02:45.1]} 12... Kf8
{[%clk 0:02:48.8]} 13. Bf4 {[%clk 0:02:20.3]} 13... Nxd2 {[%clk 0:02:48.8]} 14.
Kxd2 {[%clk 0:02:21.2]} 14... Bd6 {[%clk 0:02:48.7]} 15. c3 {[%clk 0:02:10]}
15... Qe7 {[%clk 0:02:46.7]} 16. Bxd6 {[%clk 0:02:09.5]} 16... Qxd6 {[%clk
0:02:45.6]} 17. g4 {[%clk 0:02:09.4]} 17... Ke7 {[%clk 0:02:03.5]} 18. Qg6
{[%clk 0:02:05.8]} 18... Rag8 {[%clk 0:02:03.8]} 19. g5 {[%clk 0:02:02.2]} 19...
Bc6 {[%clk 0:02:04.2]} 20. Rag1 {[%clk 0:02:01.2]} 20... fxg5 {[%clk 0:01:41.9]}
21. Qh5 {[%clk 0:01:52.5]} 21... Be8 {[%clk 0:01:41.2]} 22. Qg4 {[%clk
0:01:52.1]} 22... gxh4 {[%clk 0:01:33.7]} 23. Rxh4 {[%clk 0:01:50.6]} 23... Kd8
{[%clk 0:01:27.8]} 24. f4 {[%clk 0:01:48.1]} 24... g5 {[%clk 0:01:22.8]} 25.
fxg5 {[%clk 0:01:40.1]} 25... Qe7 {[%clk 0:00:20.1]} 26. g6 {[%clk 0:01:29.7]}
26... Bxg6 {[%clk 0:00:20.3]} 27. Bxg6 {[%clk 0:01:28.7]} 27... Rxg6 {[%clk
0:00:21.2]} 28. Qxg6 {[%clk 0:01:27.7]} 28... Qxh4 {[%clk 0:00:21.9]} 29. Rg2
{[%clk 0:01:23.1]} 29... Qe7 {[%clk 0:00:13.9]} 30. Qh5 {[%clk 0:01:20.4]} 30...
Kc8 {[%clk 0:00:12.6]} 31. Qe5 {[%clk 0:01:20.5]} 31... Rf8 {[%clk 0:00:08.7]}
32. Rg6 {[%clk 0:01:20.7]} 32... Rf2+ {[%clk 0:00:06.5]} 33. Kd3 {[%clk
0:01:20.5]} 33... Kb7 {[%clk 0:00:05.8]} 34. Rxe6 {[%clk 0:01:20.3]} 34... Qd7
{[%clk 0:00:06.4]} 35. a4 {[%clk 0:01:16.5]} 35... Rxb2 {[%clk 0:00:06.5]} 36.
Re7 {[%clk 0:01:13.2]} 36... Qc6 {[%clk 0:00:06.8]} 37. e4 {[%clk 0:01:12.1]}
37... Qc4+ {[%clk 0:00:06.6]} 38. Ke3 {[%clk 0:01:12.4]} 38... Qe2+ {[%clk
0:00:06.7]} 39. Kf4 {[%clk 0:01:12.5]} 39... Qf1+ {[%clk 0:00:05.5]} 40. Kg4
{[%clk 0:01:13.1]} 40... Rg2+ {[%clk 0:00:05.8]} 41. Kh5 {[%clk 0:01:10.4]}
41... Qh1+ {[%clk 0:00:06.2]} 42. Qh2 {[%clk 0:01:09.9]} 42... Qxh2# {[%clk
0:00:06.5]} 0-1